[Event "ETCC Open 2023"]
[Site "Budva"]
[Date "2023.11.11"]
[Round "1.66"]
[White "Mastrovasilis, Dimitrios"]
[Black "Poulsen, Martin"]
[Result "1-0"]
[ECO "C10"]
[WhiteElo "2573"]
[BlackElo "2291"]
[Annotator "TA"]
[PlyCount "89"]
[EventDate "2023.11.10"]
[EventType "team-tourn"]
[EventCountry "MNE"]
[SourceTitle "playchess.com"]
[Source "ChessBase"]
[SourceQuality "1"]
[WhiteTeam "Greece"]
[BlackTeam "Faroe Islands"]
[WhiteTeamCountry "GRE"]
[BlackTeamCountry "FAI"]
[TimeControl "40/5400+30:1800+30"]

{[%evp 12,89,37,19,34,31,31,27,25,22,34,32,41,32,44,46,45,42,62,61,51,64,54,66,75,84,74,70,66,67,79,64,93,87,96,72,97,90,88,65,67,63,63,70,72,62,62,55,81,79,80,84,112,104,124,134,196,161,439,110,1233,1165,2217,1839,29986,29987,29987,29988,29988,29989,29994,29989,29989,0,29994,29979,29977,29976,29976,29977]} 1. e4 {[%emt 0:00:07]} e6 {[%emt 0:00:08]} 2. d4 {[%emt 0:00:17]} d5 {[%emt 0:00:04]} 3. Nc3 {[%emt 0:00:19]} dxe4 {[%emt 0:00:07]} 4. Nxe4 {[%emt 0:00:16]} Nd7 {[%emt 0:00:05]} 5. g3 {[%emt 0:04:48]} Ngf6 {[%emt 0:02:12]} 6. Nxf6+ {[%emt 0:00:19]} Nxf6 {[%emt 0:06:10]} 7. Nf3 {[%emt 0:05:18]} Bd7 {[%emt 0:10:56] C10: French with 3 Nc3: Unusual Black 3rd moves and 3...dxe4.} 8. Bg2 {[%emt 0:33:01]} Bc6 {[%emt 0:02:44]} 9. O-O {[%emt 0:00:17]} Bd6 {[%emt 0:01:28] White has an edge.} 10. Re1 {[%emt 0:03:11]} O-O {[%emt 0:00:59]} 11. c4 {[%emt 0:01:11] [#]} Re8 $146 {[%emt 0:04:01]} ({Predecessor:} 11... a5 12. Qc2 Bb4 13. Re2 a4 14. a3 Bd6 15. Bd2 Re8 16. Rae1 Bf8 17. h4 h6 {1-0 Mikoska,J (2234)-Sindelar,F (2001) CZE-chT12 4P email 2016 [4]}) 12. Qc2 {[%emt 0:01:00]} Bxf3 {[%emt 0:08:46]} 13. Bxf3 {[%emt 0:00:10]} c6 {[%emt 0:00:40]} 14. Be3 {[%emt 0:04:43]} e5 {[%emt 0:07:33]} 15. dxe5 {[%emt 0:03:05]} Bxe5 {[%emt 0:01:07]} 16. Rad1 {[%emt 0:01:04]} Qc7 {[%emt 0:04:31]} 17. Re2 {[%emt 0:01:34]} Re6 {[%emt 0:06:28]} 18. b4 {[%emt 0:04:23][%cal Bb2b4,Bb4b5][%mdl 32]} Rae8 {[%emt 0:06:44]} 19. b5 {[%emt 0:02:42] White has more active pieces.} c5 {[%emt 0:08:16]} 20. Rde1 {[%emt 0:06:00]} Bd6 {[%emt 0:04:34]} 21. Kg2 {[%emt 0:02:40]} (21. Bg5 {with more complications.} Be5 22. Bd5 R6e7 23. Qf5) 21... h6 {[%emt 0:03:32]} 22. a4 {[%emt 0:03:02]} R8e7 {[%emt 0:01:25]} 23. Qd2 {[%emt 0:05:18]} Ne4 {[%emt 0:05:43]} 24. Qd3 {[%emt 0:00:39] Hoping for Bxe4.} Nf6 {[%emt 0:02:38]} 25. a5 {[%emt 0:07:20]} Qxa5 {[%emt 0:04:38] [#]} 26. Bxh6 $1 {[%emt 0:01:27] Strongly threatening Rxe6.} Rxe2 {[%emt 0:01:20]} 27. Rxe2 {[%emt 0:00:03]} Rxe2 {[%emt 0:01:28]} 28. Bxe2 {[%emt 0:00:09] A strong pair of Bishops.} Qc7 {[%emt 0:02:04]} 29. Bd2 {[%emt 0:02:17]} Qe7 {[%emt 0:00:27]} 30. Bf3 {[%emt 0:00:44] White now steadily converts the win.} b6 {[%emt 0:00:46]} 31. h4 {[%emt 0:00:50][%cal Bh2h4,Bh4h5,Bh5h6,Bh6h7][%mdl 32]} Qe6 {[%emt 0:01:47]} 32. h5 {[%emt 0:02:01]} Nd7 {[%emt 0:02:02]} 33. Bd5 {[%emt 0:01:34]} (33. Qe2 {simplifies} Qxe2 34. Bxe2 Nf6 35. f4) 33... Qf6 {[%emt 0:01:03]} (33... Qe7 $16 {was worth a try.} 34. Qf3 Be5) 34. f4 {[%emt 0:01:41] aiming for Bc3. Black is weak on the light squares} Qb2 {[%emt 0:00:21]} (34... Nf8 {keeps fighting.} 35. Bc3 Qe7) 35. Kh3 $2 {[%emt 0:02:19]} ({Not} 35. Bxf7+ Kxf7 36. Qxd6 Nf6 $16) (35. Bc6 $18 {is the precise move to win.}) 35... Nf6 {[%emt 0:00:25][%mdl 8192]} (35... Qd4 $16 36. Qe2 Nf6) 36. Bc3 $18 {[%emt 0:00:48]} Qb3 {[%emt 0:00:18] [#]} 37. h6 $1 {[%emt 0:00:52][%cal Od3g6][%mdl 512] White wants to mate with Qg6!} Bf8 {[%emt 0:00:56] [#]} (37... Nxd5 38. h7+) 38. h7+ $1 {[%emt 0:01:04][%mdl 576] Deflection} Kh8 {[%emt 0:00:04]} 39. Bxf7 {[%emt 0:00:30]} Qa3 {[%emt 0:00:52]} 40. Bg6 {[%emt 0:00:36]} Be7 {[%emt 0:00:36]} 41. Qf3 {[%emt 0:04:57]} Bf8 {[%emt 0:04:51]} 42. Qd3 {[%emt 0:11:47]} Be7 $1 {[%emt 0:03:36]} 43. Bxf6 {[%emt 0:01:42] White mates.} Qxd3 {[%emt 0:00:07]} 44. Bxg7+ {[%emt 0:00:05]} Kxg7 {[%emt 0:00:05]} 45. Bxd3 {[%emt 0:00:07] A cool game by Mastrovasilis.   Weighted Error Value: White=0.31/Black=0.34} 1-0

[Event "ETCC Open 2023"]
[Site "Budva"]
[Date "2023.11.11"]
[Round "1.67"]
[White "Egilstoft, Rogvi"]
[Black "Papaioannou, Ioannis"]
[Result "1/2-1/2"]
[ECO "B22"]
[WhiteElo "2254"]
[BlackElo "2623"]
[Annotator "TA"]
[PlyCount "120"]
[EventDate "2023.11.10"]
[EventType "team-tourn"]
[EventCountry "MNE"]
[SourceTitle "playchess.com"]
[Source "ChessBase"]
[SourceQuality "1"]
[WhiteTeam "Faroe Islands"]
[BlackTeam "Greece"]
[WhiteTeamCountry "FAI"]
[BlackTeamCountry "GRE"]
[TimeControl "40/5400+30:1800+30"]

{[%evp 21,120,0,0,-26,-11,-26,-18,-25,-21,-23,-16,-37,-24,-51,-45,-45,-7,-5,-7,-7,-7,-5,0,0,0,0,0,0,0,0,-3,-8,0,0,0,0,0,0,3,0,6,0,0,0,87,77,85,85,80,83,81,0,0,0,0,0,0,4,0,0,0,5,15,0,0,0,0,0,0,0,0,0,0,0,0,0,0,0,0,0,0,0,0,0,0,0,0,0,0,0,0,0,0,0,0,0,0,0,0,0,0]} 1. e4 {[%emt 0:00:06]} c5 {[%emt 0:00:13]} 2. c3 {[%emt 0:00:29]} d5 {[%emt 0:00:18]} 3. exd5 {[%emt 0:00:24]} Qxd5 {[%emt 0:00:06]} 4. d4 {[%emt 0:00:34]} Nf6 {[%emt 0:00:14]} 5. Nf3 {[%emt 0:01:16]} e6 {[%emt 0:00:26]} 6. Be2 {[%emt 0:05:08]} cxd4 {[%emt 0:01:27]} 7. cxd4 {[%emt 0:01:35]} Nc6 {[%emt 0:00:27]} 8. O-O {[%emt 0:02:54]} Be7 {[%emt 0:00:43]} 9. Nc3 {[%emt 0:01:38]} Qd6 {[%emt 0:00:13]} 10. Bg5 {[%emt 0:13:07]} O-O {[%emt 0:00:40]} 11. Qd2 {[%emt 0:01:12] 11.Rc1 is not played anymore.} b6 {[%emt 0:08:53]} 12. Nb5 {[%emt 0:27:30] B22: Sicilian: 2 c3.} Qd8 {[%emt 0:04:15]} 13. Ne5 {[%emt 0:10:59]} Bb7 {[%emt 0:00:40]} 14. Bf3 {[%emt 0:11:01]} Nd5 {[%emt 0:01:21]} 15. Bxe7 {[%emt 0:00:32]} Ncxe7 {[%emt 0:00:49]} 16. Rac1 {[%emt 0:01:13] [#]} f6 $146 {[%emt 0:10:19]} ({Predecessor:} 16... Nf5 17. Nc7 Rc8 18. Nxd5 Rxc1 19. Rxc1 Bxd5 20. Qc3 h6 21. b3 Bxf3 22. Nxf3 Qd6 {0-1 Tscharotschkin,M-Kaeser,U (2280) Dortmund op-A 1992 (5)}) 17. Nd3 {[%emt 0:04:42]} Qd7 {[%emt 0:02:01]} 18. a4 {[%emt 0:00:27]} a6 {[%emt 0:05:40]} 19. Nc7 {[%emt 0:01:57]} Rac8 {[%emt 0:09:37]} 20. Nxd5 {[%emt 0:00:58]} Bxd5 {[%emt 0:00:22]} 21. Bxd5 {[%emt 0:00:31]} Nxd5 {[%emt 0:01:18]} 22. a5 {[%emt 0:01:13]} bxa5 {[%emt 0:00:58]} 23. Qxa5 {[%emt 0:02:38]} Qb5 {[%emt 0:00:30]} 24. Qxb5 {[%emt 0:02:05]} axb5 {[%emt 0:00:06]} 25. g3 {[%emt 0:04:54]} Kf7 {[%emt 0:01:24]} 26. Nc5 {[%emt 0:00:53]} Ra8 {[%emt 0:01:59]} 27. Rfe1 {[%emt 0:00:08]} Rfc8 {[%emt 0:01:35]} 28. Ra1 {[%emt 0:01:36]} Rxa1 {[%emt 0:05:25]} 29. Rxa1 $11 {[%emt 0:00:01][%mdl 4096] Endgame KRN-KRN} Rc7 {[%emt 0:00:08]} 30. Ra5 {[%emt 0:02:15]} b4 {[%emt 0:00:19]} 31. Kg2 {[%emt 0:00:39]} Ne7 {[%emt 0:03:04]} 32. Rb5 {[%emt 0:00:34]} Nc6 {[%emt 0:00:31] [#]} (32... Nf5 $11 {keeps the balance.}) 33. Nxe6 $1 $16 {[%emt 0:00:43][%mdl 64] Remove Defender, Decoy} Rd7 {[%emt 0:00:48]} 34. d5 {[%emt 0:00:33] White is more active.} Ne7 {[%emt 0:01:33]} 35. Rxb4 {[%emt 0:00:32]} Nxd5 {[%emt 0:00:10]} 36. Nc5 {[%emt 0:00:13]} ({White should try} 36. Re4 $16) 36... Nxb4 $11 {[%emt 0:02:42] The position is equal.} 37. Nxd7 {[%emt 0:00:01] KN-KN} Nd3 {[%emt 0:00:12]} 38. b3 {[%emt 0:00:14]} Ne1+ {[%emt 0:00:21]} 39. Kf1 {[%emt 0:00:18]} Nf3 {[%emt 0:00:02]} 40. Kg2 {[%emt 0:00:30]} Ne1+ {[%emt 0:00:02]} 41. Kg1 {[%emt 0:09:58]} Ke6 {[%emt 0:05:30]} 42. Nf8+ {[%emt 0:01:47]} Kf7 {[%emt 0:00:13]} 43. Nxh7 {[%emt 0:06:21]} Nc2 {[%emt 0:11:26]} 44. f4 {[%emt 0:03:47]} g6 {[%emt 0:03:30]} 45. Kf2 {[%emt 0:01:46]} Kg7 {[%emt 0:00:08]} 46. Nxf6 {[%emt 0:00:14]} Kxf6 {[%emt 0:00:02] KN-KP} 47. g4 {[%emt 0:00:29]} Ke6 {[%emt 0:00:16]} 48. Kg3 {[%emt 0:02:08]} Kf6 {[%emt 0:00:07]} 49. h3 {[%emt 0:06:17]} Ke6 {[%emt 0:00:13]} 50. h4 {[%emt 0:00:12]} Kf6 {[%emt 0:00:06]} 51. g5+ {[%emt 0:00:51]} Kf5 {[%emt 0:00:55]} 52. h5 {[%emt 0:00:14]} gxh5 {[%emt 0:00:05] KN-K3P} 53. Kh4 {[%emt 0:00:04]} Kg6 {[%emt 0:02:12]} 54. f5+ {[%emt 0:00:11][%mdl 64] [#] Deflection} Kxf5 {[%emt 0:00:04]} 55. Kxh5 {[%emt 0:00:05] KN-KPP} Nd4 {[%emt 0:00:22]} 56. b4 {[%emt 0:01:40]} Ne6 {[%emt 0:00:25]} 57. b5 {[%emt 0:00:25] Hoping for b6.} Ke5 {[%emt 0:00:12]} 58. g6 {[%emt 0:00:31]} Nf4+ {[%emt 0:00:07]} 59. Kg5 {[%emt 0:00:12]} Nxg6 {[%emt 0:00:05]} 60. Kxg6 {[%emt 0:00:10]} Kd6 {[%emt 0:00:03] Weighted Error Value: White=0.06 (flawless) /Black=0.05 (flawless)} 1/2-1/2

[Event "ETCC Open 2023"]
[Site "Budva"]
[Date "2023.11.11"]
[Round "1.68"]
[White "Kourkoulos-Arditis, Stamatis"]
[Black "Rodgaard, John"]
[Result "1-0"]
[ECO "C14"]
[WhiteElo "2543"]
[BlackElo "2281"]
[Annotator "RC"]
[PlyCount "57"]
[EventDate "2023.11.10"]
[EventType "team-tourn"]
[EventCountry "MNE"]
[SourceTitle "playchess.com"]
[Source "ChessBase"]
[SourceQuality "1"]
[WhiteTeam "Greece"]
[BlackTeam "Faroe Islands"]
[WhiteTeamCountry "GRE"]
[BlackTeamCountry "FAI"]
[TimeControl "40/5400+30:1800+30"]

1. e4 {[%emt 0:00:03]} e6 {[%emt 0:00:17]} 2. d4 {[%emt 0:00:05]} d5 {[%emt 0:00:08]} 3. Nc3 {[%emt 0:00:06]} Nf6 {[%emt 0:00:59]} 4. Bg5 {[%emt 0:01:07]} Be7 {[%emt 0:00:50]} 5. e5 {[%emt 0:00:09]} Nfd7 {[%emt 0:00:08]} 6. h4 {[%emt 0:00:19]} c5 {[%emt 0:01:41]} 7. Bxe7 {[%emt 0:00:34]} Kxe7 {[%emt 0:00:30]} 8. Nf3 {[%emt 0:05:53]} Nc6 {[%emt 0:36:55]} 9. dxc5 {[%emt 0:03:56]} Qa5 {[%emt 0:06:43]} 10. Qd2 {[%emt 0:02:50]} Qxc5 {[%emt 0:02:32]} 11. O-O-O {[%emt 0:02:28]} h6 {[%emt 0:07:17]} 12. Bb5 {[%emt 0:09:24]} Nb6 {[%emt 0:13:43]} 13. a3 {[%emt 0:14:51]} Nc4 {[%emt 0:05:40]} 14. Bxc4 {[%emt 0:01:14]} Qxc4 {[%emt 0:00:39]} 15. h5 {[%emt 0:00:19]} Bd7 {[%emt 0:01:48]} 16. Rh4 {[%emt 0:02:28]} Qc5 {[%emt 0:02:06]} 17. Kb1 {[%emt 0:06:24]} Rac8 {[%emt 0:00:51]} 18. Ne4 {[%emt 0:11:41]} Qb6 {[%emt 0:00:06]} 19. Nd6 {[%emt 0:01:56]} Rc7 {[%emt 0:00:29]} 20. Rg4 {[%emt 0:03:48]} Kf8 {[%emt 0:04:11]} 21. Qf4 {[%emt 0:01:24]} Be8 {[%emt 0:00:46]} 22. Nh4 {[%emt 0:01:01]} Nxe5 {[%emt 0:03:20]} 23. Qxe5 {[%emt 0:00:18]} f6 {[%emt 0:00:38]} 24. Qxe6 {[%emt 0:00:21]} Re7 {[%emt 0:01:50]} 25. Qxe7+ {[%emt 0:00:57]} Kxe7 {[%emt 0:00:06]} 26. Nc8+ {[%emt 0:00:03]} Kf8 {[%emt 0:03:00]} 27. Nxb6 {[%emt 0:00:05]} Bxh5 {[%emt 0:00:10]} 28. Ng6+ {[%emt 0:00:46]} Bxg6 {[%emt 0:00:11]} 29. Rxg6 {[%emt 0:00:10]} 1-0

[Event "ETCC Open 2023"]
[Site "Budva"]
[Date "2023.11.11"]
[Round "1.69"]
[White "Moroni, Luca Jr"]
[Black "Saraci, Nderim"]
[Result "1-0"]
[ECO "A22"]
[WhiteElo "2575"]
[BlackElo "2466"]
[Annotator "TA"]
[PlyCount "69"]
[EventDate "2023.11.10"]
[EventType "team-tourn"]
[EventCountry "MNE"]
[SourceTitle "playchess.com"]
[Source "ChessBase"]
[SourceQuality "1"]
[WhiteTeam "Italy"]
[BlackTeam "Kosovo"]
[WhiteTeamCountry "ITA"]
[BlackTeamCountry "KOS"]
[TimeControl "40/5400+30:1800+30"]

{[%evp 9,69,13,16,20,15,25,33,18,48,45,60,55,55,65,83,-21,-25,-34,-27,-87,72,70,59,59,69,111,70,91,110,80,149,164,145,56,496,267,539,281,558,239,597,597,554,406,1033,1033,1016,1009,950,972,1712,1651,2014,1641,29982,5310,29985,29982,29990,29991,29991,706]} 1. c4 {[%emt 0:00:03]} Nf6 {[%emt 0:00:42]} 2. Nc3 {[%emt 0:00:06]} e5 {[%emt 0:03:48]} 3. e3 {[%emt 0:00:14]} d5 {[%emt 0:04:14]} 4. cxd5 {[%emt 0:03:43]} Nxd5 {[%emt 0:00:20]} 5. Nf3 {[%emt 0:00:33]} Nxc3 {[%emt 0:01:43]} 6. bxc3 {[%emt 0:00:33] A22: English Opening: 1...e5 2 Nc3 Nf6.} Bd6 {[%emt 0:00:55]} 7. d4 {[%emt 0:02:41]} Nd7 {[%emt 0:02:38]} 8. Bd3 {[%emt 0:04:00] White is slightly better.} Qe7 {[%emt 0:11:45]} 9. e4 {[%emt 0:05:51] [#]} O-O $146 {[%emt 0:02:49]} ({Predecessor:} 9... exd4 10. cxd4 c5 11. e5 cxd4 12. O-O Bb4 13. Bg5 Qc5 14. Rc1 Bc3 15. Bd2 h6 16. Nxd4 Qxd4 17. Bxc3 Qb6 18. e6 Nf6 19. Rb1 Qc7 20. Bb5+ Kf8 21. e7+ {1-0 Golombek,H-Hallmark,A British CF-46 Championship 1959 (5)}) 10. O-O {[%emt 0:02:00]} c5 {[%emt 0:06:05]} 11. d5 {[%emt 0:21:23]} f5 {[%emt 0:06:01]} 12. exf5 {[%emt 0:11:50]} (12. Bg5 $16 Nf6 13. Nd2 (13. exf5 e4 $11)) 12... e4 $11 {[%emt 0:04:17]} 13. Re1 {[%emt 0:07:05]} Nf6 {[%emt 0:01:36]} 14. g4 {[%emt 0:04:38] [#]} (14. Bg5 $1 $11 Bxf5 15. Nh4) 14... Qc7 $2 {[%emt 0:10:56]} (14... g6 $1 $17 {[%cal Rg6f5] stays on course.} 15. Bh6 gxf5) 15. Bxe4 $16 {[%emt 0:09:31]} Nxg4 {[%emt 0:02:03]} 16. Ng5 $1 {[%emt 0:04:35]} Bxh2+ {[%emt 0:04:25]} 17. Kg2 $1 {[%emt 0:01:00]} ({Reject} 17. Kf1 Nxf2 18. d6 (18. Qh5 $2 h6 $19) 18... Nxd1 $11) 17... Nf6 {[%emt 0:14:03] Strongly threatening ...Nxe4.} (17... Bxf5 $2 18. Bxf5 Rxf5 19. Qxg4 $18) 18. Ne6 $36 {[%emt 0:02:16][%mdl 2048] White has strong initiative. The board is on fire.} Bxe6 {[%emt 0:00:44]} 19. fxe6 {[%emt 0:00:36]} Nxe4 {[%emt 0:05:52]} (19... Bd6 $142) 20. Rxe4 {[%emt 0:00:10][%cal Of2f4] f4! is the strong threat.} Be5 {[%emt 0:05:21]} 21. Be3 {[%emt 0:04:00] Active counter play!} (21. Bg5 $16 {aiming for e7.} Rae8 22. Rb1) 21... b5 $2 {[%emt 0:03:15][%mdl 8192] This move loses the game for Black.} ({Black should try} 21... Rf5 $1 $14) 22. Rb1 {[%emt 0:02:35]} (22. Qh5 $142 Bxc3 23. Rh1) 22... a6 $2 {[%emt 0:01:34]} (22... Rf5 {was worth a try.} 23. Rxb5 Raf8 24. Rxc5 Qe7) 23. a4 {[%emt 0:02:01]} Rab8 $2 {[%emt 0:00:49]} (23... Bd6 {is a better defense.} 24. axb5 axb5 25. Rxb5 Ra7) 24. Qe2 {[%emt 0:02:07]} (24. Qh5 $142 Bd6 25. e7 Bxe7 26. Rh1) 24... c4 $2 {[%emt 0:02:03]} (24... Bd6 {is tougher.} 25. axb5 axb5 26. Rxb5 Rxb5 27. Qxb5 Qe7) 25. axb5 $18 {[%emt 0:01:49]} axb5 {[%emt 0:00:07]} 26. Rd1 {[%emt 0:04:00]} Qd6 {[%emt 0:01:59] [#]} (26... Bxc3 $2 27. e7 $18) (26... Rf5 $142 27. Qg4 g6) 27. Bc5 $1 {[%emt 0:01:04][%mdl 576] Deflection} Qxc5 {[%emt 0:00:06]} 28. Rxe5 {[%emt 0:00:01] e7 would be deadly.} Qd6 {[%emt 0:01:23]} 29. e7 {[%emt 0:00:57]} Rfe8 {[%emt 0:00:53]} 30. Re6 {[%emt 0:00:40]} Qd7 {[%emt 0:00:24]} 31. Qe4 {[%emt 0:01:04] Black is weak on the dark squares} Rb7 {[%emt 0:01:57]} 32. d6 {[%emt 0:01:09] Threatening mate with Rh1.} Rb6 {[%emt 0:00:52]} 33. Rh1 {[%emt 0:01:41] White mates.} Rxd6 {[%emt 0:00:15]} 34. Qxh7+ {[%emt 0:00:08]} Kf7 {[%emt 0:00:08]} 35. Qg6+ {[%emt 0:00:06] Weighted Error Value: White=0.72/Black=1.23} 1-0

[Event "ETCC Open 2023"]
[Site "Budva"]
[Date "2023.11.11"]
[Round "1.70"]
[White "Uruci, Endrit"]
[Black "Sonis, Francesco"]
[Result "0-1"]
[ECO "C01"]
[WhiteElo "2315"]
[BlackElo "2564"]
[Annotator "RC"]
[PlyCount "68"]
[EventDate "2023.11.10"]
[EventType "team-tourn"]
[EventCountry "MNE"]
[SourceTitle "playchess.com"]
[Source "ChessBase"]
[SourceQuality "1"]
[WhiteTeam "Kosovo"]
[BlackTeam "Italy"]
[WhiteTeamCountry "KOS"]
[BlackTeamCountry "ITA"]
[TimeControl "40/5400+30:1800+30"]

1. e4 {[%emt 0:00:10]} e6 {[%emt 0:00:07]} 2. d4 {[%emt 0:00:07]} d5 {[%emt 0:00:04]} 3. exd5 {[%emt 0:00:45]} exd5 {[%emt 0:00:19]} 4. Bd3 {[%emt 0:00:10]} Bd6 {[%emt 0:00:36]} 5. Ne2 {[%emt 0:00:15]} Nf6 {[%emt 0:00:47]} 6. O-O {[%emt 0:00:29]} O-O {[%emt 0:00:08]} 7. Bf4 {[%emt 0:00:11]} Bg4 {[%emt 0:01:42]} 8. f3 {[%emt 0:00:35]} Bh5 {[%emt 0:00:04]} 9. Nbc3 {[%emt 0:01:49]} Bg6 {[%emt 0:01:41]} 10. Re1 {[%emt 0:01:59]} Re8 {[%emt 0:08:24]} 11. Qd2 {[%emt 0:01:13]} c6 {[%emt 0:05:54]} 12. Ng3 {[%emt 0:05:37]} Bxf4 {[%emt 0:09:52]} 13. Qxf4 {[%emt 0:00:07]} Nbd7 {[%emt 0:00:17]} 14. Nce2 {[%emt 0:08:27]} Qb6 {[%emt 0:02:53]} 15. Qd2 {[%emt 0:13:27]} Qxb2 {[%emt 0:14:25]} 16. Reb1 {[%emt 0:06:05]} Qa3 {[%emt 0:00:04]} 17. Rxb7 {[%emt 0:00:15]} Nb6 {[%emt 0:06:42]} 18. Nf4 {[%emt 0:07:41]} Qb2 {[%emt 0:00:28]} 19. Rd1 {[%emt 0:02:39]} Qxd4+ {[%emt 0:00:09]} 20. Kh1 {[%emt 0:00:06]} Qc5 {[%emt 0:05:17]} 21. h4 {[%emt 0:06:35]} Qd6 {[%emt 0:09:52]} 22. h5 {[%emt 0:08:01]} Bxd3 {[%emt 0:00:05]} 23. cxd3 {[%emt 0:00:07]} Qe5 {[%emt 0:03:14]} 24. Rc1 {[%emt 0:09:12]} Qg5 {[%emt 0:01:06]} 25. Kh2 {[%emt 0:00:52]} Rec8 {[%emt 0:05:52]} 26. Re1 {[%emt 0:01:59]} Nbd7 {[%emt 0:03:26]} 27. Re7 {[%emt 0:08:27]} Nc5 {[%emt 0:04:20]} 28. Rxa7 {[%emt 0:02:14]} Rxa7 {[%emt 0:00:19]} 29. Rxa7 {[%emt 0:00:03]} Ne6 {[%emt 0:00:06]} 30. Nge2 {[%emt 0:01:45]} Nxh5 {[%emt 0:00:18]} 31. g3 {[%emt 0:01:37]} Nxg3 {[%emt 0:00:11]} 32. Nxg3 {[%emt 0:01:16]} Nxf4 {[%emt 0:00:05]} 33. Nf1 {[%emt 0:01:04]} Re8 {[%emt 0:00:19]} 34. Ra4 {[%emt 0:01:34]} Re2+ {[%emt 0:00:06]} 0-1

[Event "ETCC Open 2023"]
[Site "Budva"]
[Date "2023.11.11"]
[Round "1.71"]
[White "Lodici, Lorenzo"]
[Black "Asllani, Muhamet"]
[Result "1/2-1/2"]
[ECO "E06"]
[WhiteElo "2550"]
[BlackElo "2216"]
[Annotator "RC"]
[PlyCount "128"]
[EventDate "2023.11.10"]
[EventType "team-tourn"]
[EventCountry "MNE"]
[SourceTitle "playchess.com"]
[Source "ChessBase"]
[SourceQuality "1"]
[WhiteTeam "Italy"]
[BlackTeam "Kosovo"]
[WhiteTeamCountry "ITA"]
[BlackTeamCountry "KOS"]
[TimeControl "40/5400+30:1800+30"]

1. d4 {[%emt 0:00:38]} Nf6 {[%emt 0:00:31]} 2. c4 {[%emt 0:00:07]} e6 {[%emt 0:00:11]} 3. g3 {[%emt 0:00:11]} d5 {[%emt 0:00:52]} 4. Nf3 {[%emt 0:00:10]} Be7 {[%emt 0:00:19]} 5. Bg2 {[%emt 0:00:06]} O-O {[%emt 0:00:09]} 6. Qc2 {[%emt 0:00:35]} c5 {[%emt 0:02:36]} 7. O-O {[%emt 0:00:54]} Nc6 {[%emt 0:01:57]} 8. dxc5 {[%emt 0:04:51]} d4 {[%emt 0:05:00]} 9. Nbd2 {[%emt 0:07:35]} Bxc5 {[%emt 0:14:56]} 10. Nb3 {[%emt 0:00:05]} Qb6 {[%emt 0:01:52]} 11. a3 {[%emt 0:16:55]} a5 {[%emt 0:00:37]} 12. e3 {[%emt 0:03:10]} e5 {[%emt 0:13:27]} 13. exd4 {[%emt 0:01:13]} exd4 {[%emt 0:08:10]} 14. Bd2 {[%emt 0:14:10]} a4 {[%emt 0:05:38]} 15. Nxc5 {[%emt 0:00:50]} Qxc5 {[%emt 0:00:08]} 16. b4 {[%emt 0:00:43]} axb3 {[%emt 0:02:43]} 17. Qxb3 {[%emt 0:00:02]} Na5 {[%emt 0:02:35]} 18. Qb4 {[%emt 0:02:08]} Qh5 {[%emt 0:02:53]} 19. Nxd4 {[%emt 0:02:59]} Bh3 {[%emt 0:00:20]} 20. Rfe1 {[%emt 0:05:10]} Bxg2 {[%emt 0:00:33]} 21. Kxg2 {[%emt 0:00:03]} Rfc8 {[%emt 0:00:32]} 22. Nf3 {[%emt 0:03:27]} Nxc4 {[%emt 0:06:47]} 23. Bg5 {[%emt 0:04:27]} Nd5 {[%emt 0:05:04]} 24. Qxb7 {[%emt 0:00:43]} Ncb6 {[%emt 0:01:24]} 25. Rec1 {[%emt 0:15:46]} h6 {[%emt 0:02:00]} 26. Rxc8+ {[%emt 0:00:54]} Rxc8 {[%emt 0:00:06]} 27. Bd2 {[%emt 0:00:21]} Rc2 {[%emt 0:03:09]} 28. Rc1 {[%emt 0:05:54]} Rb2 {[%emt 0:05:35]} 29. Qc6 {[%emt 0:03:40]} Rb3 {[%emt 0:01:50]} 30. Qe8+ {[%emt 0:00:05]} Kh7 {[%emt 0:00:11]} 31. Qe4+ {[%emt 0:02:00]} f5 {[%emt 0:01:25]} 32. Qe2 {[%emt 0:00:35]} Qg4 {[%emt 0:01:43]} 33. Ra1 {[%emt 0:01:07]} Na4 {[%emt 0:02:28]} 34. Bc1 {[%emt 0:01:04]} Nc5 {[%emt 0:04:06]} 35. h3 {[%emt 0:00:30]} Qe4 {[%emt 0:00:15]} 36. Qxe4 {[%emt 0:00:08]} fxe4 {[%emt 0:00:09]} 37. Ne1 {[%emt 0:00:25]} Nd3 {[%emt 0:01:53]} 38. Nxd3 {[%emt 0:02:06]} exd3 {[%emt 0:01:00]} 39. Kf1 {[%emt 0:01:24]} Nb6 {[%emt 0:01:07]} 40. Ke1 {[%emt 0:00:48]} Nc4 {[%emt 0:01:05]} 41. a4 {[%emt 0:30:50]} Rc3 {[%emt 0:30:31]} 42. Be3 {[%emt 0:00:00]} Rc2 {[%emt 0:00:00]} 43. Ba7 {[%emt 0:00:00]} Re2+ {[%emt 0:00:00]} 44. Kf1 {[%emt 0:00:00]} Nd2+ {[%emt 0:00:00]} 45. Kg2 {[%emt 0:00:00]} Nc4 {[%emt 0:00:00]} 46. Bd4 {[%emt 0:00:00]} Rc2 {[%emt 0:00:00]} 47. Kf3 {[%emt 0:00:00]} Nd2+ {[%emt 0:00:00]} 48. Ke3 {[%emt 0:00:00]} Nb3 {[%emt 0:00:00]} 49. Rd1 {[%emt 0:00:00]} d2 {[%emt 0:00:00]} 50. Bb6 {[%emt 0:00:00]} Ra2 {[%emt 0:00:00]} 51. Kd3 {[%emt 0:00:00]} Rxa4 {[%emt 0:00:00]} 52. Kc3 {[%emt 0:00:00]} Na5 {[%emt 0:00:00]} 53. Be3 {[%emt 0:00:00]} Nc4 {[%emt 0:00:57]} 54. Bd4 {[%emt 0:00:00]} Nd6 {[%emt 0:00:11]} 55. Kd3 {[%emt 0:00:00]} Nc4 {[%emt 0:00:18]} 56. Bc3 {[%emt 0:00:00]} Kg6 {[%emt 0:00:37]} 57. Rb1 {[%emt 0:00:00]} h5 {[%emt 0:00:42]} 58. Ke2 {[%emt 0:00:00]} Ra3 {[%emt 0:00:37]} 59. Bd4 {[%emt 0:00:00]} h4 {[%emt 0:00:44]} 60. gxh4 {[%emt 0:00:00]} Rxh3 {[%emt 0:00:24]} 61. Rg1+ {[%emt 0:00:00]} Kf5 {[%emt 0:00:27]} 62. Bxg7 {[%emt 0:01:09]} Rxh4 {[%emt 0:00:23]} 63. Bc3 {[%emt 0:01:11]} Re4+ {[%emt 0:00:11]} 64. Kd1 {[%emt 0:00:04]} Re1+ {[%emt 0:00:15]} 1/2-1/2